[Event "Titled Tuesday Blitz July 11 Early 2023"]
[White "Keymer, Vincent"]
[Black "Pham, Le Thao Nguyen"]
[WhiteFideId "12940690"]
[BlackFideId "12401226"]
[WhiteElo "2921"]
[BlackElo "2522"]
[Result "1-0"]
[Round "2"]
[TimeControl "180+2"]
[Date "2023.07.11"]
[WhiteClock "0:01:49"]
[BlackClock "0:00:00"]
[Board "107"]

1. a3 {[%clk 0:02:54]}  d5 {[%clk 0:02:59]} 2. Nf3 {[%clk 0:02:53]}  Nf6 {[%clk 0:02:57]} 3. e3 {[%clk 0:02:52]}  c6 {[%clk 0:02:56]} 4. c4 {[%clk 0:02:52]}  Bf5 {[%clk 0:02:54]} 5. b4 {[%clk 0:02:49]}  e6 {[%clk 0:02:53]} 6. Bb2 {[%clk 0:02:48]}  Nbd7 {[%clk 0:02:52]} 7. Be2 {[%clk 0:02:48]}  h6 {[%clk 0:02:52]} 8. O-O {[%clk 0:02:45]}  Be7 {[%clk 0:02:52]} 9. Nc3 {[%clk 0:02:45]}  O-O {[%clk 0:02:52]} 10. Rc1 {[%clk 0:02:46]}  Bh7 {[%clk 0:02:39]} 11. d3 {[%clk 0:02:42]}  a5 {[%clk 0:02:20]} 12. b5 {[%clk 0:02:42]}  c5 {[%clk 0:02:17]} 13. Na4 {[%clk 0:02:29]}  b6 {[%clk 0:01:53]} 14. d4 {[%clk 0:02:26]}  Rc8 {[%clk 0:01:44]} 15. h3 {[%clk 0:02:23]}  Re8 {[%clk 0:01:38]} 16. cxd5 {[%clk 0:02:12]}  exd5 {[%clk 0:01:01]} 17. Nc3 {[%clk 0:02:10]}  c4 {[%clk 0:00:30]} 18. Ne5 {[%clk 0:02:10]}  Bd6 {[%clk 0:00:26]} 19. Nc6 {[%clk 0:02:08]}  Qc7 {[%clk 0:00:21]} 20. Bf3 {[%clk 0:02:03]}  Be4 {[%clk 0:00:18]} 21. Bxe4 {[%clk 0:02:03]}  dxe4 {[%clk 0:00:19]} 22. Qe2 {[%clk 0:02:03]}  Nb8 {[%clk 0:00:18]} 23. d5 {[%clk 0:02:03]}  Nxc6 {[%clk 0:00:16]} 24. dxc6 {[%clk 0:02:03]}  Qe7 {[%clk 0:00:16]} 25. Rfd1 {[%clk 0:01:56]}  Qe5 {[%clk 0:00:06]} 26. g3 {[%clk 0:01:56]}  Bc7 {[%clk 0:00:06]} 27. Nd5 {[%clk 0:01:51]}  Qf5 {[%clk 0:00:02]} 28. Bxf6 {[%clk 0:01:51]}  gxf6 {[%clk 0:00:03]} 29. Qg4+ {[%clk 0:01:51]}  Qxg4 {[%clk 0:00:01]} 30. hxg4 {[%clk 0:01:51]}  Kg7 {[%clk 0:00:01]} 31. Rxc4 {[%clk 0:01:50]}  Re5 {[%clk 0:00:00]} 32. a4 {[%clk 0:01:49]} 1-0


[Site "https://www.chess.com"]

[Event "Titled Tuesday Blitz July 11 Early 2023"]
[White "Ocelak, Jakub"]
[Black "Kravtsiv, Martyn"]
[WhiteFideId "23707933"]
[BlackFideId "14113147"]
[WhiteElo "2458"]
[BlackElo "2828"]
[Result "1-0"]
[Round "2"]
[TimeControl "180+2"]
[Date "2023.07.11"]
[WhiteClock "0:00:37"]
[BlackClock "0:01:27"]
[Board "109"]

1. d4 {[%clk 0:03:00]}  e6 {[%clk 0:02:59]} 2. Nc3 {[%clk 0:03:00]}  d5 {[%clk 0:02:57]} 3. Bf4 {[%clk 0:03:00]}  Ne7 {[%clk 0:02:57]} 4. e3 {[%clk 0:02:55]}  h6 {[%clk 0:02:54]} 5. Nf3 {[%clk 0:02:52]}  Nf5 {[%clk 0:02:53]} 6. g4 {[%clk 0:02:45]}  Nd6 {[%clk 0:02:51]} 7. h4 {[%clk 0:02:40]}  b6 {[%clk 0:02:51]} 8. Ne5 {[%clk 0:02:36]}  Bb7 {[%clk 0:02:51]} 9. Qf3 {[%clk 0:02:33]}  Nd7 {[%clk 0:02:49]} 10. O-O-O {[%clk 0:02:32]}  Qe7 {[%clk 0:02:44]} 11. Nb5 {[%clk 0:02:27]}  Nxe5 {[%clk 0:02:38]} 12. Bxe5 {[%clk 0:02:22]}  Nxb5 {[%clk 0:02:36]} 13. Bxb5+ {[%clk 0:02:22]}  c6 {[%clk 0:02:37]} 14. Bd3 {[%clk 0:02:22]}  O-O-O {[%clk 0:02:36]} 15. g5 {[%clk 0:02:17]}  hxg5 {[%clk 0:02:34]} 16. hxg5 {[%clk 0:02:18]}  Rxh1 {[%clk 0:02:34]} 17. Rxh1 {[%clk 0:02:18]}  c5 {[%clk 0:02:26]} 18. c3 {[%clk 0:02:08]}  c4 {[%clk 0:02:24]} 19. Bc2 {[%clk 0:02:06]}  b5 {[%clk 0:02:24]} 20. a3 {[%clk 0:01:38]}  a5 {[%clk 0:02:23]} 21. Rh7 {[%clk 0:01:29]}  b4 {[%clk 0:02:19]} 22. axb4 {[%clk 0:01:29]}  axb4 {[%clk 0:02:18]} 23. Bxg7 {[%clk 0:01:27]}  bxc3 {[%clk 0:02:07]} 24. bxc3 {[%clk 0:01:27]}  Qa3+ {[%clk 0:02:03]} 25. Kd2 {[%clk 0:01:26]}  Bb4 {[%clk 0:01:56]} 26. cxb4 {[%clk 0:01:10]}  Ba6 {[%clk 0:01:56]} 27. Be5 {[%clk 0:00:55]}  Qxb4+ {[%clk 0:01:34]} 28. Kd1 {[%clk 0:00:54]}  Qb2 {[%clk 0:01:34]} 29. Qxf7 {[%clk 0:00:37]}  Qa1+ {[%clk 0:01:33]} 30. Ke2 {[%clk 0:00:37]}  c3+ {[%clk 0:01:27]} 31. Kf3 {[%clk 0:00:37]} 1-0


[Site "https://www.chess.com"]

[Event "Titled Tuesday Blitz July 11 Early 2023"]
[White "Nasuta, Grzegorz"]
[Black "Novikov, Evgenij"]
[WhiteFideId "1141686"]
[BlackFideId "4125380"]
[WhiteElo "2749"]
[BlackElo "2487"]
[Result "1-0"]
[Round "2"]
[TimeControl "180+2"]
[Date "2023.07.11"]
[WhiteClock "0:00:14"]
[BlackClock "0:00:25"]
[Board "110"]

1. e4 {[%clk 0:03:00]}  c6 {[%clk 0:02:59]} 2. d4 {[%clk 0:02:54]}  d5 {[%clk 0:02:58]} 3. Nc3 {[%clk 0:02:55]}  dxe4 {[%clk 0:02:58]} 4. Nxe4 {[%clk 0:02:56]}  Nf6 {[%clk 0:02:58]} 5. Nxf6+ {[%clk 0:02:54]}  exf6 {[%clk 0:02:59]} 6. c3 {[%clk 0:02:54]}  Bd6 {[%clk 0:02:58]} 7. Bd3 {[%clk 0:02:49]}  O-O {[%clk 0:02:59]} 8. Ne2 {[%clk 0:02:47]}  Re8 {[%clk 0:02:56]} 9. O-O {[%clk 0:02:47]}  Nd7 {[%clk 0:02:56]} 10. Ng3 {[%clk 0:02:43]}  Nf8 {[%clk 0:02:54]} 11. Nf5 {[%clk 0:02:39]}  Bc7 {[%clk 0:02:49]} 12. Qg4 {[%clk 0:02:25]}  Ng6 {[%clk 0:02:48]} 13. h4 {[%clk 0:02:24]}  Bxf5 {[%clk 0:02:34]} 14. Bxf5 {[%clk 0:02:21]}  Qd6 {[%clk 0:02:34]} 15. g3 {[%clk 0:02:18]}  Qd5 {[%clk 0:02:05]} 16. h5 {[%clk 0:02:03]}  Ne7 {[%clk 0:01:58]} 17. Bc2 {[%clk 0:02:03]}  f5 {[%clk 0:01:54]} 18. Qh4 {[%clk 0:01:56]}  f4 {[%clk 0:01:40]} 19. Bxf4 {[%clk 0:01:28]}  Bxf4 {[%clk 0:01:39]} 20. Qxf4 {[%clk 0:01:29]}  Qxh5 {[%clk 0:01:36]} 21. Bd1 {[%clk 0:01:27]}  Qb5 {[%clk 0:01:32]} 22. Qd2 {[%clk 0:01:18]}  Rad8 {[%clk 0:01:26]} 23. b4 {[%clk 0:00:40]}  Rd6 {[%clk 0:01:24]} 24. Re1 {[%clk 0:00:36]}  Qd5 {[%clk 0:01:14]} 25. Qf4 {[%clk 0:00:24]}  Rf6 {[%clk 0:01:14]} 26. Rxe7 {[%clk 0:00:23]}  Qd8 {[%clk 0:00:51]} 27. Rxe8+ {[%clk 0:00:20]}  Qxe8 {[%clk 0:00:52]} 28. Qd2 {[%clk 0:00:19]}  Qe4 {[%clk 0:00:25]} 29. Qe3 {[%clk 0:00:14]} 1-0


[Site "https://www.chess.com"]

[Event "Titled Tuesday Blitz July 11 Early 2023"]
[White "JonSnowNW1"]
[Black "Liyanage, Ranindu Dilshan"]
[BlackFideId "9915834"]
[WhiteElo "2426"]
[BlackElo "2656"]
[Result "0-1"]
[Round "2"]
[TimeControl "180+2"]
[Date "2023.07.11"]
[WhiteClock "0:00:00"]
[BlackClock "0:00:54"]
[Board "112"]

1. c4 {[%clk 0:03:00]}  e5 {[%clk 0:03:00]} 2. Nc3 {[%clk 0:02:59]}  Nf6 {[%clk 0:02:59]} 3. g3 {[%clk 0:02:59]}  c6 {[%clk 0:02:57]} 4. Nf3 {[%clk 0:02:58]}  e4 {[%clk 0:02:56]} 5. Nd4 {[%clk 0:02:57]}  d5 {[%clk 0:02:57]} 6. cxd5 {[%clk 0:02:52]}  cxd5 {[%clk 0:02:57]} 7. d3 {[%clk 0:02:43]}  Bc5 {[%clk 0:02:48]} 8. e3 {[%clk 0:01:38]}  O-O {[%clk 0:02:38]} 9. Bg2 {[%clk 0:01:35]}  Bxd4 {[%clk 0:02:33]} 10. exd4 {[%clk 0:01:35]}  Bg4 {[%clk 0:02:33]} 11. Qc2 {[%clk 0:01:28]}  Nc6 {[%clk 0:02:32]} 12. Be3 {[%clk 0:01:09]}  Nb4 {[%clk 0:02:31]} 13. Qd2 {[%clk 0:01:10]}  Nxd3+ {[%clk 0:02:30]} 14. Kf1 {[%clk 0:01:10]}  Rc8 {[%clk 0:02:26]} 15. h3 {[%clk 0:01:08]}  Bf5 {[%clk 0:02:26]} 16. Kg1 {[%clk 0:01:07]}  Qb6 {[%clk 0:02:25]} 17. Rb1 {[%clk 0:01:03]}  Qc7 {[%clk 0:02:10]} 18. a3 {[%clk 0:00:39]}  a6 {[%clk 0:02:08]} 19. g4 {[%clk 0:00:31]}  Be6 {[%clk 0:02:01]} 20. Bf1 {[%clk 0:00:30]}  Nxb2 {[%clk 0:01:51]} 21. Nxe4 {[%clk 0:00:21]}  Nxe4 {[%clk 0:01:49]} 22. Qxb2 {[%clk 0:00:21]}  b5 {[%clk 0:01:49]} 23. Bd3 {[%clk 0:00:20]}  f5 {[%clk 0:01:41]} 24. gxf5 {[%clk 0:00:18]}  Bxf5 {[%clk 0:01:38]} 25. Rh2 {[%clk 0:00:18]}  Rf6 {[%clk 0:01:37]} 26. Rg2 {[%clk 0:00:18]}  Bxh3 {[%clk 0:01:37]} 27. Rh2 {[%clk 0:00:16]}  Rg6+ {[%clk 0:01:31]} 28. Kh1 {[%clk 0:00:16]}  Bg4 {[%clk 0:01:23]} 29. Be2 {[%clk 0:00:14]}  Bxe2 {[%clk 0:01:04]} 30. Qxe2 {[%clk 0:00:14]}  Nc3 {[%clk 0:01:05]} 31. Qh5 {[%clk 0:00:13]}  Nxb1 {[%clk 0:01:01]} 32. Qxh7+ {[%clk 0:00:10]}  Kf7 {[%clk 0:01:01]} 33. Rh5 {[%clk 0:00:05]}  Qc2 {[%clk 0:00:54]} 34. Rxd5 {[%clk 0:00:00]}  Qe4+ {[%clk 0:00:54]} 0-1


[Site "https://www.chess.com"]

[Event "Titled Tuesday Blitz July 11 Early 2023"]
[White "Kuzhilniy, Oleksandr"]
[Black "Rosh Jain"]
[WhiteFideId "34110500"]
[BlackFideId "25789465"]
[WhiteElo "2632"]
[BlackElo "2371"]
[Result "0-1"]
[Round "2"]
[TimeControl "180+2"]
[Date "2023.07.11"]
[WhiteClock "0:00:35"]
[BlackClock "0:01:08"]
[Board "113"]

1. b3 {[%clk 0:03:00]}  d5 {[%clk 0:02:55]} 2. Bb2 {[%clk 0:03:00]}  e6 {[%clk 0:02:55]} 3. Nf3 {[%clk 0:03:00]}  Nf6 {[%clk 0:02:54]} 4. e3 {[%clk 0:03:01]}  b6 {[%clk 0:02:54]} 5. d4 {[%clk 0:03:01]}  Bb7 {[%clk 0:02:54]} 6. Bd3 {[%clk 0:03:01]}  Bd6 {[%clk 0:02:54]} 7. O-O {[%clk 0:03:02]}  Nbd7 {[%clk 0:02:54]} 8. Nbd2 {[%clk 0:03:02]}  O-O {[%clk 0:02:54]} 9. c4 {[%clk 0:03:03]}  c5 {[%clk 0:02:54]} 10. Rc1 {[%clk 0:03:03]}  Rc8 {[%clk 0:02:53]} 11. Qe2 {[%clk 0:03:03]}  Qe7 {[%clk 0:02:50]} 12. Rfd1 {[%clk 0:03:03]}  Rfd8 {[%clk 0:02:50]} 13. h3 {[%clk 0:03:02]}  h6 {[%clk 0:02:49]} 14. Bb1 {[%clk 0:02:58]}  Bb8 {[%clk 0:02:47]} 15. cxd5 {[%clk 0:02:37]}  Nxd5 {[%clk 0:02:42]} 16. Nc4 {[%clk 0:02:36]}  N7f6 {[%clk 0:02:35]} 17. dxc5 {[%clk 0:02:32]}  bxc5 {[%clk 0:02:27]} 18. Na5 {[%clk 0:02:31]}  Ba8 {[%clk 0:02:26]} 19. Ne5 {[%clk 0:02:30]}  Nb4 {[%clk 0:02:14]} 20. Rxd8+ {[%clk 0:02:24]}  Rxd8 {[%clk 0:02:14]} 21. a3 {[%clk 0:02:20]}  Bxe5 {[%clk 0:02:11]} 22. Bxe5 {[%clk 0:02:18]}  Nc6 {[%clk 0:02:12]} 23. Nxc6 {[%clk 0:02:16]}  Bxc6 {[%clk 0:02:13]} 24. Qb2 {[%clk 0:02:13]}  Bd5 {[%clk 0:02:02]} 25. Qc3 {[%clk 0:02:07]}  Rc8 {[%clk 0:01:58]} 26. Bxf6 {[%clk 0:02:07]}  Qxf6 {[%clk 0:01:57]} 27. Qxf6 {[%clk 0:02:02]}  gxf6 {[%clk 0:01:58]} 28. Rc3 {[%clk 0:02:02]}  a5 {[%clk 0:01:55]} 29. Bd3 {[%clk 0:02:00]}  Rb8 {[%clk 0:01:52]} 30. Bc2 {[%clk 0:01:56]}  Rc8 {[%clk 0:01:49]} 31. Kf1 {[%clk 0:01:54]}  f5 {[%clk 0:01:49]} 32. g3 {[%clk 0:01:54]}  Kg7 {[%clk 0:01:48]} 33. Ke1 {[%clk 0:01:51]}  Kf6 {[%clk 0:01:48]} 34. Kd2 {[%clk 0:01:47]}  Ke5 {[%clk 0:01:48]} 35. Kc1 {[%clk 0:01:44]}  Kd6 {[%clk 0:01:47]} 36. Bd3 {[%clk 0:01:44]}  Rb8 {[%clk 0:01:46]} 37. Kc2 {[%clk 0:01:44]}  f6 {[%clk 0:01:44]} 38. Bc4 {[%clk 0:01:44]}  Bg2 {[%clk 0:01:43]} 39. Rd3+ {[%clk 0:01:43]}  Ke7 {[%clk 0:01:41]} 40. Kc3 {[%clk 0:01:43]}  Bxh3 {[%clk 0:01:41]} 41. a4 {[%clk 0:01:40]}  Bg2 {[%clk 0:01:40]} 42. Bb5 {[%clk 0:01:40]}  Bd5 {[%clk 0:01:37]} 43. f4 {[%clk 0:01:39]}  Rg8 {[%clk 0:01:33]} 44. Bc4 {[%clk 0:01:37]}  Be4 {[%clk 0:01:29]} 45. Rd1 {[%clk 0:01:31]}  Rxg3 {[%clk 0:01:29]} 46. Bb5 {[%clk 0:01:22]}  Rxe3+ {[%clk 0:01:26]} 47. Kc4 {[%clk 0:01:22]}  Bd5+ {[%clk 0:01:23]} 48. Kxc5 {[%clk 0:01:22]}  Rxb3 {[%clk 0:01:22]} 49. Kb6 {[%clk 0:01:19]}  h5 {[%clk 0:01:17]} 50. Kxa5 {[%clk 0:01:14]}  h4 {[%clk 0:01:17]} 51. Rd2 {[%clk 0:01:14]}  h3 {[%clk 0:01:17]} 52. Rh2 {[%clk 0:01:12]}  Bg2 {[%clk 0:01:17]} 53. Kb6 {[%clk 0:01:12]}  e5 {[%clk 0:01:16]} 54. Kc5 {[%clk 0:01:01]}  exf4 {[%clk 0:01:14]} 55. a5 {[%clk 0:01:01]}  f3 {[%clk 0:01:14]} 56. a6 {[%clk 0:01:01]}  Ra3 {[%clk 0:01:11]} 57. Kb6 {[%clk 0:00:59]}  f2 {[%clk 0:01:11]} 58. a7 {[%clk 0:00:58]}  f1=Q {[%clk 0:01:10]} 59. Bxf1 {[%clk 0:00:56]}  Bxf1 {[%clk 0:01:11]} 60. Rd2 {[%clk 0:00:52]}  Bg2 {[%clk 0:01:10]} 61. Re2+ {[%clk 0:00:48]}  Kf7 {[%clk 0:01:09]} 62. Rf2 {[%clk 0:00:48]}  f4 {[%clk 0:01:08]} 63. Rc2 {[%clk 0:00:42]}  Rxa7 {[%clk 0:01:07]} 64. Kxa7 {[%clk 0:00:42]}  f3 {[%clk 0:01:07]} 65. Kb6 {[%clk 0:00:41]}  Kg6 {[%clk 0:01:07]} 66. Kc5 {[%clk 0:00:40]}  Kf5 {[%clk 0:01:08]} 67. Kd4 {[%clk 0:00:35]}  Kf4 {[%clk 0:01:08]} 0-1


[Site "https://www.chess.com"]

[Event "Titled Tuesday Blitz July 11 Early 2023"]
[White "Kim, Sergey"]
[Black "Slavin, Alexey"]
[WhiteFideId "13700570"]
[BlackFideId "24104388"]
[WhiteElo "2593"]
[BlackElo "2351"]
[Result "0-1"]
[Round "2"]
[TimeControl "180+2"]
[Date "2023.07.11"]
[WhiteClock "0:00:02"]
[BlackClock "0:00:13"]
[Board "116"]

1. d4 {[%clk 0:02:57]}  Nc6 {[%clk 0:03:00]} 2. c4 {[%clk 0:02:57]}  e5 {[%clk 0:02:59]} 3. d5 {[%clk 0:02:56]}  Nce7 {[%clk 0:02:59]} 4. Nc3 {[%clk 0:02:56]}  Ng6 {[%clk 0:02:59]} 5. e4 {[%clk 0:02:56]}  Bc5 {[%clk 0:02:58]} 6. g3 {[%clk 0:02:53]}  Nf6 {[%clk 0:02:58]} 7. Bg2 {[%clk 0:02:53]}  a6 {[%clk 0:02:58]} 8. Nge2 {[%clk 0:02:51]}  d6 {[%clk 0:02:58]} 9. O-O {[%clk 0:02:51]}  O-O {[%clk 0:02:58]} 10. Qd3 {[%clk 0:02:48]}  Bd7 {[%clk 0:02:57]} 11. Be3 {[%clk 0:02:48]}  Bxe3 {[%clk 0:02:54]} 12. Qxe3 {[%clk 0:02:47]}  Ng4 {[%clk 0:02:49]} 13. Qd2 {[%clk 0:02:46]}  f5 {[%clk 0:02:48]} 14. h3 {[%clk 0:02:41]}  Nf6 {[%clk 0:02:36]} 15. exf5 {[%clk 0:02:40]}  Bxf5 {[%clk 0:02:36]} 16. Qe3 {[%clk 0:02:36]}  b6 {[%clk 0:02:28]} 17. b4 {[%clk 0:02:34]}  Qc8 {[%clk 0:02:21]} 18. Kh2 {[%clk 0:02:23]}  a5 {[%clk 0:02:15]} 19. a3 {[%clk 0:02:23]}  Ne7 {[%clk 0:01:27]} 20. f4 {[%clk 0:02:01]}  Ng6 {[%clk 0:01:22]} 21. c5 {[%clk 0:01:26]}  axb4 {[%clk 0:01:18]} 22. axb4 {[%clk 0:01:25]}  Rxa1 {[%clk 0:01:18]} 23. Rxa1 {[%clk 0:01:25]}  bxc5 {[%clk 0:01:19]} 24. bxc5 {[%clk 0:01:25]}  Re8 {[%clk 0:01:10]} 25. fxe5 {[%clk 0:01:12]}  Nxe5 {[%clk 0:01:10]} 26. Qg5 {[%clk 0:00:54]}  Bxh3 {[%clk 0:00:54]} 27. Bxh3 {[%clk 0:00:53]}  Nf3+ {[%clk 0:00:54]} 28. Kg2 {[%clk 0:00:52]}  Qxh3+ {[%clk 0:00:53]} 29. Kxh3 {[%clk 0:00:52]}  Nxg5+ {[%clk 0:00:54]} 30. Kg2 {[%clk 0:00:52]}  dxc5 {[%clk 0:00:53]} 31. Ra5 {[%clk 0:00:49]}  Nge4 {[%clk 0:00:51]} 32. Nxe4 {[%clk 0:00:48]}  Rxe4 {[%clk 0:00:44]} 33. Kf3 {[%clk 0:00:46]}  Rc4 {[%clk 0:00:41]} 34. Nf4 {[%clk 0:00:43]}  g5 {[%clk 0:00:38]} 35. Ne6 {[%clk 0:00:42]}  Nxd5 {[%clk 0:00:38]} 36. Nxg5 {[%clk 0:00:36]}  Kg7 {[%clk 0:00:36]} 37. Ne6+ {[%clk 0:00:35]}  Kf6 {[%clk 0:00:36]} 38. Nxc5 {[%clk 0:00:35]}  Rc3+ {[%clk 0:00:36]} 39. Kf2 {[%clk 0:00:33]}  Ke5 {[%clk 0:00:35]} 40. Nd7+ {[%clk 0:00:29]}  Kd4 {[%clk 0:00:31]} 41. Nf8 {[%clk 0:00:26]}  h5 {[%clk 0:00:29]} 42. Ne6+ {[%clk 0:00:21]}  Ke5 {[%clk 0:00:29]} 43. Ng5 {[%clk 0:00:19]}  c5 {[%clk 0:00:25]} 44. Nf3+ {[%clk 0:00:18]}  Ke4 {[%clk 0:00:20]} 45. Ra4+ {[%clk 0:00:17]}  c4 {[%clk 0:00:18]} 46. Nd2+ {[%clk 0:00:16]}  Kd3 {[%clk 0:00:18]} 47. Nf3 {[%clk 0:00:16]}  Nb4 {[%clk 0:00:18]} 48. Ne5+ {[%clk 0:00:14]}  Ke4 {[%clk 0:00:17]} 49. Ng6 {[%clk 0:00:13]}  Nd3+ {[%clk 0:00:17]} 50. Kg2 {[%clk 0:00:13]}  Rc2+ {[%clk 0:00:18]} 51. Kh3 {[%clk 0:00:13]}  Kd4 {[%clk 0:00:18]} 52. Kh4 {[%clk 0:00:12]}  Nc5 {[%clk 0:00:18]} 53. Rb4 {[%clk 0:00:11]}  Ne4 {[%clk 0:00:17]} 54. Nf4 {[%clk 0:00:10]}  Rc3 {[%clk 0:00:16]} 55. Nxh5 {[%clk 0:00:09]}  Kd3 {[%clk 0:00:15]} 56. Nf4+ {[%clk 0:00:08]}  Kd2 {[%clk 0:00:16]} 57. Nd5 {[%clk 0:00:08]}  Rc1 {[%clk 0:00:15]} 58. Nf4 {[%clk 0:00:08]}  c3 {[%clk 0:00:15]} 59. Rxe4 {[%clk 0:00:07]}  c2 {[%clk 0:00:15]} 60. Rd4+ {[%clk 0:00:07]}  Kc3 {[%clk 0:00:15]} 61. Rd3+ {[%clk 0:00:07]}  Kc4 {[%clk 0:00:15]} 62. Rd2 {[%clk 0:00:06]}  Rh1+ {[%clk 0:00:14]} 63. Kg4 {[%clk 0:00:06]}  c1=Q {[%clk 0:00:14]} 64. Re2 {[%clk 0:00:06]}  Re1 {[%clk 0:00:13]} 65. Rxe1 {[%clk 0:00:04]}  Qxe1 {[%clk 0:00:13]} 66. Kf5 {[%clk 0:00:04]}  Kd4 {[%clk 0:00:13]} 67. g4 {[%clk 0:00:05]}  Qe4+ {[%clk 0:00:13]} 68. Kg5 {[%clk 0:00:02]}  Qe5+ {[%clk 0:00:13]} 0-1


[Site "https://www.chess.com"]

[Event "Titled Tuesday Blitz July 11 Early 2023"]
[White "Kiselev, Pavel"]
[Black "Yurovskykh, Oleksandr"]
[WhiteFideId "4191102"]
[BlackFideId "14134020"]
[WhiteElo "2229"]
[BlackElo "2550"]
[Result "1/2-1/2"]
[Round "2"]
[TimeControl "180+2"]
[Date "2023.07.11"]
[WhiteClock "0:00:12"]
[BlackClock "0:00:08"]
[Board "117"]

1. Nf3 {[%clk 0:03:00]}  Nf6 {[%clk 0:02:55]} 2. c4 {[%clk 0:03:01]}  c6 {[%clk 0:02:51]} 3. d4 {[%clk 0:03:01]}  d5 {[%clk 0:02:52]} 4. e3 {[%clk 0:03:01]}  Bf5 {[%clk 0:02:47]} 5. Bd3 {[%clk 0:03:00]}  Bxd3 {[%clk 0:02:47]} 6. Qxd3 {[%clk 0:03:00]}  e6 {[%clk 0:02:47]} 7. O-O {[%clk 0:03:00]}  Nbd7 {[%clk 0:02:48]} 8. b3 {[%clk 0:02:59]}  Bd6 {[%clk 0:02:45]} 9. Bb2 {[%clk 0:02:59]}  O-O {[%clk 0:02:46]} 10. Nbd2 {[%clk 0:02:58]}  Qe7 {[%clk 0:02:46]} 11. e4 {[%clk 0:02:59]}  dxe4 {[%clk 0:02:41]} 12. Nxe4 {[%clk 0:02:59]}  Ba3 {[%clk 0:02:37]} 13. Bc3 {[%clk 0:02:50]}  Nxe4 {[%clk 0:02:32]} 14. Qxe4 {[%clk 0:02:50]}  Nf6 {[%clk 0:02:33]} 15. Qe3 {[%clk 0:02:49]}  Rfd8 {[%clk 0:02:33]} 16. Rad1 {[%clk 0:02:46]}  a5 {[%clk 0:02:25]} 17. Ne5 {[%clk 0:02:31]}  a4 {[%clk 0:02:14]} 18. Qf3 {[%clk 0:02:11]}  axb3 {[%clk 0:02:12]} 19. axb3 {[%clk 0:02:12]}  Bb4 {[%clk 0:02:10]} 20. Bb2 {[%clk 0:02:12]}  Ra2 {[%clk 0:02:09]} 21. Rb1 {[%clk 0:02:07]}  Rda8 {[%clk 0:02:06]} 22. h3 {[%clk 0:02:02]}  Nd7 {[%clk 0:01:59]} 23. Nd3 {[%clk 0:02:01]}  Bd6 {[%clk 0:01:55]} 24. Rfe1 {[%clk 0:01:44]}  Qf6 {[%clk 0:01:52]} 25. Qe3 {[%clk 0:01:35]}  Qf5 {[%clk 0:01:37]} 26. Qe4 {[%clk 0:01:06]}  Qxe4 {[%clk 0:01:36]} 27. Rxe4 {[%clk 0:01:07]}  b5 {[%clk 0:01:33]} 28. c5 {[%clk 0:01:05]}  Bc7 {[%clk 0:01:25]} 29. g3 {[%clk 0:01:05]}  Nf6 {[%clk 0:01:20]} 30. Ree1 {[%clk 0:00:41]}  Nd5 {[%clk 0:01:19]} 31. Ra1 {[%clk 0:00:26]}  Kf8 {[%clk 0:00:20]} 32. Rxa2 {[%clk 0:00:25]}  Rxa2 {[%clk 0:00:21]} 33. Ra1 {[%clk 0:00:25]}  Rxa1+ {[%clk 0:00:21]} 34. Bxa1 {[%clk 0:00:26]}  f6 {[%clk 0:00:22]} 35. Kf1 {[%clk 0:00:23]}  Ba5 {[%clk 0:00:22]} 36. Ke2 {[%clk 0:00:20]}  Ke7 {[%clk 0:00:19]} 37. f4 {[%clk 0:00:17]}  Bc3 {[%clk 0:00:12]} 38. Bb2 {[%clk 0:00:14]}  Ba5 {[%clk 0:00:12]} 39. g4 {[%clk 0:00:07]}  Bc7 {[%clk 0:00:12]} 40. Kf3 {[%clk 0:00:06]}  f5 {[%clk 0:00:12]} 41. Ne5 {[%clk 0:00:06]}  Bxe5 {[%clk 0:00:12]} 42. dxe5 {[%clk 0:00:07]}  Kf7 {[%clk 0:00:11]} 43. Bc1 {[%clk 0:00:07]}  Kg6 {[%clk 0:00:11]} 44. Bd2 {[%clk 0:00:07]}  Kf7 {[%clk 0:00:05]} 45. b4 {[%clk 0:00:08]}  g6 {[%clk 0:00:05]} 46. g5 {[%clk 0:00:08]}  Kg7 {[%clk 0:00:05]} 47. h4 {[%clk 0:00:09]}  h6 {[%clk 0:00:05]} 48. Kg3 {[%clk 0:00:08]}  Ne7 {[%clk 0:00:05]} 49. Kf3 {[%clk 0:00:08]}  Nd5 {[%clk 0:00:05]} 50. Kg3 {[%clk 0:00:08]}  Nc7 {[%clk 0:00:05]} 51. Kf3 {[%clk 0:00:09]}  Ne8 {[%clk 0:00:06]} 52. Kg3 {[%clk 0:00:09]}  Kh7 {[%clk 0:00:06]} 53. Kf3 {[%clk 0:00:10]}  Ng7 {[%clk 0:00:07]} 54. Kg3 {[%clk 0:00:10]}  Nh5+ {[%clk 0:00:07]} 55. Kf3 {[%clk 0:00:11]}  Kg7 {[%clk 0:00:08]} 56. Be3 {[%clk 0:00:11]}  Kf7 {[%clk 0:00:08]} 57. Bd2 {[%clk 0:00:11]}  Ng7 {[%clk 0:00:08]} 58. Bc3 {[%clk 0:00:12]}  Ne8 {[%clk 0:00:07]} 59. Bd2 {[%clk 0:00:13]}  Nc7 {[%clk 0:00:08]} 60. Kg3 {[%clk 0:00:12]}  Nd5 {[%clk 0:00:08]} 61. Kf3 {[%clk 0:00:12]}  Kg7 {[%clk 0:00:08]} 1/2-1/2


[Site "https://www.chess.com"]

[Event "Titled Tuesday Blitz July 11 Early 2023"]
[White "musclemonster12"]
[Black "Sariego Figueredo, Wilfredo"]
[BlackFideId "3500080"]
[WhiteElo "2550"]
[BlackElo "2209"]
[Result "1-0"]
[Round "2"]
[TimeControl "180+2"]
[Date "2023.07.11"]
[WhiteClock "0:01:53"]
[BlackClock "0:01:29"]
[Board "118"]

1. Nf3 {[%clk 0:02:56]}  d5 {[%clk 0:02:59]} 2. b3 {[%clk 0:02:51]}  Nf6 {[%clk 0:02:59]} 3. Bb2 {[%clk 0:02:52]}  Nc6 {[%clk 0:03:00]} 4. d4 {[%clk 0:02:51]}  e6 {[%clk 0:03:00]} 5. e3 {[%clk 0:02:51]}  Be7 {[%clk 0:03:00]} 6. a3 {[%clk 0:02:51]}  O-O {[%clk 0:03:00]} 7. Bd3 {[%clk 0:02:52]}  Ne4 {[%clk 0:02:58]} 8. Nbd2 {[%clk 0:02:53]}  f5 {[%clk 0:02:55]} 9. O-O {[%clk 0:02:53]}  Bd6 {[%clk 0:02:48]} 10. Ne5 {[%clk 0:02:53]}  Bxe5 {[%clk 0:02:43]} 11. dxe5 {[%clk 0:02:52]}  a6 {[%clk 0:02:37]} 12. b4 {[%clk 0:02:49]}  Kh8 {[%clk 0:02:34]} 13. f3 {[%clk 0:02:49]}  Nxd2 {[%clk 0:02:30]} 14. Qxd2 {[%clk 0:02:50]}  b5 {[%clk 0:02:29]} 15. a4 {[%clk 0:02:26]}  Rb8 {[%clk 0:02:29]} 16. axb5 {[%clk 0:02:25]}  axb5 {[%clk 0:02:30]} 17. Bd4 {[%clk 0:02:22]}  Bd7 {[%clk 0:02:13]} 18. c3 {[%clk 0:02:22]}  Rg8 {[%clk 0:02:08]} 19. Bc2 {[%clk 0:02:06]}  g5 {[%clk 0:02:05]} 20. e4 {[%clk 0:02:06]}  dxe4 {[%clk 0:01:55]} 21. fxe4 {[%clk 0:02:07]}  Nxd4 {[%clk 0:01:53]} 22. cxd4 {[%clk 0:02:03]}  f4 {[%clk 0:01:50]} 23. d5 {[%clk 0:02:04]}  Qe7 {[%clk 0:01:44]} 24. Qd4 {[%clk 0:02:04]}  c6 {[%clk 0:01:30]} 25. Ra7 {[%clk 0:01:53]}  Qe8 {[%clk 0:01:29]} 1-0


[Site "https://www.chess.com"]